Cogmind - Beta 14 @@@ ROGUE MODE // 2024.10.11 @ 18:26:02 Player: N.W.L Result: Self-destructed Performance ------------- Evolutions (3) 1500 Regions Visited (9) 1800 Robots Destroyed (69) 345 Value Destroyed (1570) 1570 Prototype IDs (32) 640 Alien Tech Used (0) 0 Bonus (496) 496 TOTAL SCORE: 6351 Bonus ------- High Alert Combat Kills 11 Follower Combat Kills 185 Aligned with FarCom 300 Cogmind --------- Core Integrity 433/700 Matter 300/300 Energy 300/300 System Corruption 0% Temperature Cool (0) Movement Hovering (98) Ox1 Location -7/Scraptown Parts ------- > --- POWER (1) -------- Enhanced Nuclear Core > --- PROPULSION (4) --- Cooled Airjet Cooled Airjet Cooled Airjet Cooled Airjet > --- UTILITY (5) ------ Medium Storage Unit Advanced Visual Processing Unit Core Analyzer Hacking Suite Supersonic Drone Bay (0/1) > --- WEAPON (3) ------- Heavy Ion Cannon Gauss Rifle Longsword +1 > --- INVENTORY (10) --- Cooled Airjet Combat Airjet Gravity Neutralizer Improved Sensor Array Improved Signal Interpreter Seismic Detector Microactuators Force Booster Gatling Laser Rocket Launcher Peak State ------------ > --- POWER ------------ Enhanced Nuclear Core > --- PROPULSION ------- Cooled Airjet Cooled Airjet Cooled Airjet Cooled Airjet > --- UTILITY ---------- Medium Storage Unit Advanced Visual Processing Unit Core Analyzer Hacking Suite Supersonic Drone Bay > --- WEAPON ----------- Heavy Ion Cannon Gauss Rifle Longsword +1 > --- INVENTORY -------- Cooled Airjet Combat Airjet Gravity Neutralizer Improved Sensor Array Improved Signal Interpreter Seismic Detector Microactuators Force Booster Gatling Laser Rocket Launcher [Rating: 63] Favorites ----------- Power Enhanced Nuclear Core Engine Ion Engine Power Core Enhanced Nuclear Core Propulsion Cooled Airjet Treads Light Treads Leg Aluminum Leg Hover Unit Cooled Airjet Flight Unit Improved VTOL Module Utility Advanced Visual Processing Unit Device Seismic Detector Storage Medium Storage Unit Processor Advanced Visual Processing Unit Hackware Hacking Suite Weapon Greatsword Energy Cannon Heavy Ion Cannon Ballistic Gun Assault Rifle Launcher Rocket Launcher Slashing Weapon Greatsword Build | -11 -10 -10 -10 -9 -8 -7 -7 -7 -7 ------- Run | Yrd Mat Min Exi Min Mat Fac Sto Rec Scr Slots Evolved 6 | . . . . . 4 2 . . . Power . | . . . . . . . . . . Propulsion 2 | . . . . . 1 1 . . . Utility 3 | . . . . . 2 1 . . . Weapon 1 | . . . . . 1 . . . . Parts Attached 91 | . . 3 3 5 15 30 28 6 1 Power 6 | . . 1 . . 1 3 1 . . Engine 3 | . . 1 . . 1 1 . . . Core 3 | . . . . . . 2 1 . . Reactor . | . . . . . . . . . . Propulsion 26 | . . 2 2 . 5 6 11 . . Treads 3 | . . . 2 . 1 . . . . Leg 2 | . . 2 . . . . . . . Wheel . | . . . . . . . . . . Hover 19 | . . . . . 4 6 9 . . Flight 2 | . . . . . . . 2 . . Utility 43 | . . . 1 1 5 19 12 4 1 Device 35 | . . . 1 1 2 15 12 3 1 Storage 1 | . . . . . 1 . . . . Processor 4 | . . . . . 2 1 . 1 . Hackware 3 | . . . . . . 3 . . . Protection . | . . . . . . . . . . Artifact . | . . . . . . . . . . Weapon 16 | . . . . 4 4 2 4 2 . Energy Gun . | . . . . . . . . . . Energy Cannon 4 | . . . . . 1 1 1 1 . Ballistic Gun 3 | . . . . 2 . . . 1 . Ballistic Cannon . | . . . . . . . . . . Launcher 1 | . . . . 1 . . . . . Special Weapon . | . . . . . . . . . . Impact Weapon . | . . . . . . . . . . Slashing Weapon 8 | . . . . 1 3 1 3 . . Piercing Weapon . | . . . . . . . . . . Special Melee Weapon . | . . . . . . . . . . Unidentified Prototypes 7 | . . . . . 2 2 3 . . Parts Lost 5 | . . . . . . 2 2 1 . Power . | . . . . . . . . . . Propulsion 2 | . . . . . . 1 1 . . Utility 1 | . . . . . . 1 . . . Weapon 2 | . . . . . . . 1 1 . Highest Loss Streak 1 | . . . . . . 1 1 1 . To Critical Strikes . | . . . . . . . . . . Average Slot Usage (%) 92 | . 85 85 94 99 85 91 91 99 100 Engine 4 | . 14 14 14 14 9 . . . . Core 4 | . . . . . . 6 7 7 7 Treads 2 | . . . 16 28 1 . . . . Leg 3 | . 28 28 11 . . . . . . Hover 22 | . . . . . 24 29 29 30 30 Device 10 | . . . 8 13 9 14 14 7 7 Storage 8 | . 14 14 14 14 9 7 7 7 7 Processor 8 | . . . . . 14 10 7 15 15 Hackware 3 | . . . . . . 4 7 7 7 Energy Cannon 3 | . . . . . . 6 1 6 7 Ballistic Gun 6 | . 28 28 28 21 1 . . 6 7 Slashing Weapon 8 | . . . . 5 16 7 13 7 7 Peak Build Rating 63 | . 6 6 15 21 46 54 61 63 63 Average Rating 43 | . 6 6 11 16 40 50 56 57 59 On Entrance 26 | 6 6 6 6 15 15 44 51 57 57 Naked Turns . | . . . . . . . . . . Heaviest Build 41 | 12 12 14 15 16 28 41 38 34 34 Greatest Support 60 | 20 20 20 40 40 60 42 53 32 32 Greatest Overweight (x) 2 | . . . . . 2 1 1 1 1 Average Overweight (x) . | . . . . . . . . . 1 Largest Inventory Capacity 10 | . 8 8 8 8 10 10 10 10 10 Average Capacity 9 | . 8 8 8 8 9 10 10 10 10 Most Carried 10 | . 8 8 7 6 10 10 10 10 10 Average Carried 8 | . 6 7 6 5 9 9 9 9 10 Final Capacity 10 | 8 8 8 8 8 10 10 10 10 10 Final Carried 10 | 6 8 7 6 5 10 10 10 10 10 Class Distribution -------------------- 47% | Gladiator 45% | Mutant 6% | Commander-Gladiator Dominant Class ---------------- Mutant | -10/Materials Mutant | -10/Mines Mutant | -10/Exiles Mutant | -9/Mines Gladiator | -8/Materials Gladiator | -7/Factory Gladiator | -7/Storage Mutant | -7/Recycling Mutant | -7/Scraptown Resources | -11 -10 -10 -10 -9 -8 -7 -7 -7 -7 ----------- Run | Yrd Mat Min Exi Min Mat Fac Sto Rec Scr Matter Collected 1323 | 200 . 185 . 89 199 260 297 55 38 Remotely 60 | . . . . . 60 . . . . Salvage Created 2952 | . 51 157 . 105 882 932 759 66 . Parts 172 | . 7 10 . 5 48 59 41 2 . Haulers Intercepted 10 | . . . . . 4 3 3 . . Recyclers Shooed 3 | . . 1 . 1 1 . . . . Parts Field Recycled . | . . . . . . . . . . Retrieved Matter . | . . . . . . . . . . Parts Self-Destructed . | . . . . . . . . . . Prevented . | . . . . . . . . . . Kills | -11 -10 -10 -10 -9 -8 -7 -7 -7 -7 ------- Run | Yrd Mat Min Exi Min Mat Fac Sto Rec Scr Combat Hostiles Destroyed 33 | . 3 3 . 3 5 9 9 1 . Melee 23 | . . . . . 5 9 9 . . Guns 8 | . 3 3 . 1 . . . 1 . AOE 2 | . . . . 2 . . . . . Classes Destroyed 14 | . 1 2 . 1 6 4 . . . Worker 13 | . . 2 . 1 1 8 1 . . Builder 1 | . . . . . 1 . . . . Tunneler 3 | . . . . . . 3 . . . Hauler 10 | . . . . . 4 3 3 . . Recycler 6 | . . . . . 4 1 1 . . Operator 1 | . . . . . . 1 . . . Watcher 6 | . . . . . 2 3 1 . . Swarmer 4 | . 3 1 . . . . . . . Grunt 12 | . . 2 . 2 2 2 4 . . Brawler 1 | . . . . 1 . . . . . Sentry 8 | . . . . . 2 2 3 1 . Hunter 2 | . . . . . 1 . 1 . . Programmer 2 | . . . . . . 1 1 . . Assembled 4 | . . . . . . 4 . . . Best Kill Streak 8 | . 2 3 . 4 8 5 3 1 . Combat Bots Only 3 | . 2 2 . 3 2 2 2 1 . Max Kills in Single Turn 2 | . 1 1 . 2 1 1 1 1 . Gunslinging . | . . . . . . . . . . Exploded 2 | . . . . 2 . . . . . Melee 1 | . . . . . 1 1 1 . . Uniques/NPCs Destroyed . | . . . . . . . . . . Combat | -11 -10 -10 -10 -9 -8 -7 -7 -7 -7 -------- Run | Yrd Mat Min Exi Min Mat Fac Sto Rec Scr Hostile Shots Fired 239 | . 15 23 . 2 12 74 68 45 . Missed 76 | . 7 6 . 2 4 20 24 13 . Damage Taken 1885 | . 66 200 . . 111 597 580 331 . Core 322 | . 19 9 . . 27 107 129 31 . Absorbed by Shields . | . . . . . . . . . . Regen/Repaired (Parts) 30 | . . . . . . 30 . . . Core Remaining (%) 94 | 100 . . . 88 95 . . . . Volleys Fired 44 | . 12 15 . 7 1 . 4 5 . Largest 2 | . 2 2 . 2 2 . 1 2 . Hottest 93 | . 40 40 . 40 40 . 65 93 . Shots Fired 81 | . 24 30 . 12 2 . 4 9 . Gun 71 | . 24 30 . 10 2 . . 5 . Cannon 8 | . . . . . . . 4 4 . Launcher 2 | . . . . 2 . . . . . Special . | . . . . . . . . . . Kinetic 71 | . 24 30 . 10 2 . . 5 . Thermal 8 | . . . . . . . 4 4 . Explosive 2 | . . . . 2 . . . . . Electromagnetic . | . . . . . . . . . . Robot Hit Streak 8 | . 2 8 . 3 3 . . 6 . Robot Miss Streak 4 | . 4 2 . 3 . . . 1 . Penetration Max . | . . . . . . . . . . Secondary Targets . | . . . . . . . . . . Shots Hit Robots 155 | . 5 17 . 6 29 49 35 14 . Core Hits 70 | . 3 8 . 6 15 18 17 3 . Critical Kills . | . . . . . . . . . . Critical Parts Destroyed . | . . . . . . . . . . Critical Strikes 15 | . . . . . 1 9 3 2 . Sever 15 | . . . . . 1 9 3 2 . Melee Attacks 208 | . . . . 2 42 86 72 6 . Impact . | . . . . . . . . . . Slashing 208 | . . . . 2 42 86 72 6 . Piercing . | . . . . . . . . . . Sneak Attacks 35 | . . . . . 8 19 7 1 . Combat Hostiles 4 | . . . . . 1 1 1 1 . Follow-up Attacks 7 | . . . . . 4 . 3 . . Damage Inflicted 9378 | . 69 231 . 282 1901 4046 2334 515 . Guns 467 | . 66 226 . 87 23 . . 65 . Cannons 79 | . . . . . . . . 79 . Explosions 195 | . . . . 195 . . . . . Melee 8625 | . . . . . 1878 4046 2330 371 . Ramming 12 | . 3 5 . . . . 4 . . Kinetic 467 | . 66 226 . 87 23 . . 65 . Thermal 79 | . . . . . . . . 79 . Explosive 195 | . . . . 195 . . . . . Electromagnetic . | . . . . . . . . . . Impact . | . . . . . . . . . . Slashing 8625 | . . . . . 1878 4046 2330 371 . Piercing . | . . . . . . . . . . Highest Corruption 2 | . . . . . . . 2 2 . Average Corruption 2 | . . . . . . . 2 2 . Corruption Purged . | . . . . . . . . . . Corruption Blocked . | . . . . . . . . . . Effects 4 | . . . . . . . 1 3 . Message Errors 1 | . . . . . . . . 1 . Matter Fused 1 | . . . . . . . . 1 . Heat Flow Errors 1 | . . . . . . . . 1 . Energy Discharges 1 | . . . . . . . 1 . . Overload Shots . | . . . . . . . . . . Overflow Damage 1448 | . . . . . 224 1034 190 . . Projectiles . | . . . . . . . . . . Explosions . | . . . . . . . . . . Melee 1448 | . . . . . 224 1034 190 . . Knockbacks . | . . . . . . . . . . Impact . | . . . . . . . . . . Kinetic . | . . . . . . . . . . Secondary . | . . . . . . . . . . Self-Inflicted Damage 2 | . . . . . . . 2 . . Shots . | . . . . . . . . . . Rammed 1 | . . . . . . . 1 . . Targets Rammed 3 | . 1 1 . . . . 1 . . Kicked 2 | . 1 1 . . . . . . . Crushed . | . . . . . . . . . . Highest Temperature 113 | . . 2 . . . 4 64 113 . Average Temperature 30 | . . 2 . . . 4 28 41 . Received Heat Transfer 910 | . . 81 . . 27 337 297 168 . Siege Activations . | . . . . . . . . . . Robots Corrupted . | . . . . . . . . . . Combat Hostiles . | . . . . . . . . . . Parts Fried . | . . . . . . . . . . Impact Corruptions . | . . . . . . . . . . Robots Melted . | . . . . . . . . . . Combat Hostiles . | . . . . . . . . . . Parts Melted 1 | . . . . . . . 1 . . Heat Transferred 111 | . . . . . . . . 111 . Parts Sabotaged . | . . . . . . . . . . Parts Stolen . | . . . . . . . . . . Parts Stripped . | . . . . . . . . . . Power Chain Reactions . | . . . . . . . . . . Alert | -11 -10 -10 -10 -9 -8 -7 -7 -7 -7 ------- Run | Yrd Mat Min Exi Min Mat Fac Sto Rec Scr Peak Influence 440 | . 101 149 . 102 227 272 440 168 . Initial 107 | . . 39 . . 39 77 107 78 . Average 127 | . 75 123 . 12 95 164 150 94 . Maximum Alert Level 2 | . . . . . 1 1 2 . . Low Security (%) 81 | . 100 100 . 100 98 63 73 100 . Level 1 17 | . . . . . 1 36 23 . . Level 2 . | . . . . . . . 3 . . Level 3 . | . . . . . . . . . . Level 4 . | . . . . . . . . . . Level 5 . | . . . . . . . . . . High Security . | . . . . . . . . . . Max Security . | . . . . . . . . . . Squads Dispatched 10 | . . . . . 2 4 4 . . Investigation 3 | . . . . . 1 2 . . . Extermination 3 | . . . . . . 1 2 . . Reinforcement 4 | . . . . . 1 1 2 . . Assault . | . . . . . . . . . . Garrison . | . . . . . . . . . . Intercept . | . . . . . . . . . . Searches Triggered . | . . . . . . . . . . Construction Impeded . | . . . . . . . . . . Haulers Reinforced 2 | . . . . . . . 2 . . Active Scanning Responses . | . . . . . . . . . . Cargo Convoy Interrupts . | . . . . . . . . . . Stealth | -11 -10 -10 -10 -9 -8 -7 -7 -7 -7 --------- Run | Yrd Mat Min Exi Min Mat Fac Sto Rec Scr Distress Signals 7 | . 1 . . . . 2 4 . . Communications Jammed . | . . . . . . . . . . Distress Signals . | . . . . . . . . . . Times Spotted 93 | . 5 5 . 3 12 38 29 1 . Peak Tracking Total 9 | . 4 3 . 3 3 8 9 1 . Tactical Retreats 10 | . 1 1 . . 1 4 3 . . Traps | -11 -10 -10 -10 -9 -8 -7 -7 -7 -7 ------- Run | Yrd Mat Min Exi Min Mat Fac Sto Rec Scr Traps Triggered 2 | . . . . . . 1 1 . . Indirectly . | . . . . . . . . . . Trap Hack Attempts . | . . . . . . . . . . Triggered . | . . . . . . . . . . Disarmed . | . . . . . . . . . . Reprogrammed . | . . . . . . . . . . Reused . | . . . . . . . . . . Traps Extracted . | . . . . . . . . . . Installed . | . . . . . . . . . . Triggered . | . . . . . . . . . . Machines | -11 -10 -10 -10 -9 -8 -7 -7 -7 -7 ---------- Run | Yrd Mat Min Exi Min Mat Fac Sto Rec Scr Machines Disabled 5 | . . . . 1 . . 4 . . Max in Single Turn 1 | . . . . 1 . . 1 . . Garrison Access 1 | . . . . . . 1 . . . Machines Repaired . | . . . . . . . . . . Machines Dismantled . | . . . . . . . . . . Machines Sabotaged . | . . . . . . . . . . Overloaded Fab Kills . | . . . . . . . . . . Hacking | -11 -10 -10 -10 -9 -8 -7 -7 -7 -7 --------- Run | Yrd Mat Min Exi Min Mat Fac Sto Rec Scr Machines Accessed 36 | . . . 1 . 6 13 9 7 . Terminals 25 | . . . . . 5 7 9 4 . Fabricators 4 | . . . . . . 4 . . . Repair Stations 1 | . . . . . . 1 . . . Recycling Units 3 | . . . . . . . . 3 . Scanalyzers 1 | . . . . . 1 . . . . Garrison Access 1 | . . . . . . 1 . . . Total Hacks 89 | . . . 1 . 17 31 20 20 . Successful 33 | . . . 1 . 4 14 5 9 . Failed 56 | . . . . . 13 17 15 11 . Catastrophic 11 | . . . . . 2 4 3 2 . Database Lockouts . | . . . . . . . . . . Manual 43 | . . . 1 . 5 10 14 13 . Terminals 63 | . . . . . 14 17 20 12 . Fabricators 11 | . . . . . . 11 . . . Repair Stations 2 | . . . . . . 2 . . . Recycling Units 8 | . . . . . . . . 8 . Scanalyzers 3 | . . . . . 3 . . . . Garrison Access 1 | . . . . . . 1 . . . Terminal Hacks 14 | . . . 1 . 1 5 5 2 . Part Schematic 1 | . . . . . . . . 1 . Robot Analysis 2 | . . . . . . 1 . 1 . Prototype ID Bank 1 | . . . . . . . 1 . . Open Door 2 | . . . . . . . 2 . . Branch Access Points 2 | . . . . . 1 1 . . . Terminal Index 1 | . . . . . . 1 . . . Unreport Threat 2 | . . . . . . . 2 . . Locate Traps 1 | . . . . . . 1 . . . Hauler Manifests 1 | . . . . . . 1 . . . Derelict Proto ID Bank 1 | . . . 1 . . . . . . Fabricator Hacks 4 | . . . . . . 4 . . . Network Status 1 | . . . . . . 1 . . . Build 3 | . . . . . . 3 . . . Repair Station Hacks 2 | . . . . . . 2 . . . Scan Component 1 | . . . . . . 1 . . . Repair 1 | . . . . . . 1 . . . Recycling Unit Hacks 2 | . . . . . . . . 2 . Retrieve Components 2 | . . . . . . . . 2 . Scanalyzer 2 | . . . . . 2 . . . . Insert Component 1 | . . . . . 1 . . . . Analyze 1 | . . . . . 1 . . . . Garrison Access Hacks 1 | . . . . . . 1 . . . Seal Access 1 | . . . . . . 1 . . . Unauthorized Hacks 8 | . . . . . 1 2 . 5 . Terminals 4 | . . . . . 1 . . 3 . Botnet 2 | . . . . . 1 . . 1 . Skim 2 | . . . . . . . . 2 . Fabricators 2 | . . . . . . 2 . . . Report 1 | . . . . . . 1 . . . Haulers 1 | . . . . . . 1 . . . Repair Stations . | . . . . . . . . . . Recycling Units 2 | . . . . . . . . 2 . Tunnel 2 | . . . . . . . . 2 . Scanalyzers . | . . . . . . . . . . Garrison Access . | . . . . . . . . . . Data Cores Recovered 1 | . . . . . . 1 . . . Used 1 | . . . . . . 1 . . . Hacking Detections 29 | . . . . . 6 11 7 5 . Full Trace Events 5 | . . . . . 1 2 . 2 . Feedback Events . | . . . . . . . . . . Feedback Blocked . | . . . . . . . . . . Robot Schematics Acquired . | . . . . . . . . . . Robots Built 7 | . . . . . . 7 . . . Authchips . | . . . . . . . . . . Time 134 | . . . . . . 134 . . . Total Robot Build Rating 28 | . . . . . . 28 . . . Part Schematics Acquired 2 | . . . . . 1 . . 1 . Parts Built 2 | . . . . . . 2 . . . Authchips . | . . . . . . . . . . Time 106 | . . . . . . 106 . . . Total Part Build Rating 12 | . . . . . . 12 . . . Parts Repaired 1 | . . . . . . 1 . . . Time 22 | . . . . . . 22 . . . Parts Recycled . | . . . . . . . . . . Recycled Matter . | . . . . . . . . . . Retrieved Matter . | . . . . . . . . . . Retrieved Components 2 | . . . . . . . . 2 . Parts Scanalyzed 1 | . . . . . 1 . . . . Part Schematics Acquired 1 | . . . . . 1 . . . . Parts Damaged . | . . . . . . . . . . Bothacking | -11 -10 -10 -10 -9 -8 -7 -7 -7 -7 ------------ Run | Yrd Mat Min Exi Min Mat Fac Sto Rec Scr Used RIF Installer . | . . . . . . . . . . Robots Hacked . | . . . . . . . . . . Non-combat . | . . . . . . . . . . Combat . | . . . . . . . . . . Robot Hacks Applied . | . . . . . . . . . . Relay Couplers Released . | . . . . . . . . . . Fabnet Peak Effective % . | . . . . . . . . . . Robots Rewired . | . . . . . . . . . . Allies Hacked 1 | . . . . . . . 1 . . Hacks Repelled . | . . . . . . . . . . Allies | -11 -10 -10 -10 -9 -8 -7 -7 -7 -7 -------- Run | Yrd Mat Min Exi Min Mat Fac Sto Rec Scr Total Allies 19 | . . . . . . 7 12 . . Largest Group 10 | . . . . . . 4 10 . . Highest-Rated Group 173 | . . . . . . 60 173 . . Highest-Rated Ally 31 | . . . . . . 20 31 . . Total Orders 24 | . . . 2 . 1 2 16 2 1 STAY 6 | . . . . . . 1 5 . . ROAM 1 | . . . . . . . 1 . . FOLLOW 11 | . . . . . . 1 10 . . EXPLORE 4 | . . . 1 . 1 . . 1 1 RETURN 2 | . . . 1 . . . . 1 . Ally Attacks 74 | . . . . . . 28 46 . . Total Damage 917 | . . . . . . 344 573 . . Kills 7 | . . . . . . 2 5 . . Allies Corrupted 1 | . . . . . . . 1 . . Allies Melted 1 | . . . . . . 1 . . . Intel | -11 -10 -10 -10 -9 -8 -7 -7 -7 -7 ------- Run | Yrd Mat Min Exi Min Mat Fac Sto Rec Scr Robot Analysis Total 2 | . . . . . . 1 . 1 . Derelict Logs Recovered 2 | . . 1 . 1 . . . . . Drone Launches 4 | . . . 1 . 1 . . 1 1 Drone Recoveries 3 | . . . 1 . 1 . . 1 . Exploration | -11 -10 -10 -10 -9 -8 -7 -7 -7 -7 ------------- Run | Yrd Mat Min Exi Min Mat Fac Sto Rec Scr Turns Passed 5400 | . 156 342 379 226 771 1382 1177 539 428 Spaces Moved 4683 | 1 98 226 213 60 541 1748 884 501 411 Core . | . . . . . . . . . . Treads 200 | . . . 101 60 39 . . . . Legs 437 | 1 98 226 112 . . . . . . Wheels . | . . . . . . . . . . Hover 4046 | . . . . . 502 1748 884 501 411 Flight . | . . . . . . . . . . Fastest Speed 22 | 120 120 120 120 160 48 40 22 38 98 Average Speed 75 | 120 120 120 138 160 83 50 62 92 98 Slowest Speed 220 | 120 120 120 160 160 220 105 132 98 98 Overloaded Moves 10 | . . . . . . . 10 . . Propulsion Burnouts . | . . . . . . . . . . Robots Hopped . | . . . . . . . . . . Cave-ins Triggered . | . . . . . . . . . . Exploration Rate (%) 51 | 2 27 46 91 14 48 52 70 99 61 Regions Visited 9 Branch Regions 6 Pre-discovered Areas 2 | . . . . . . . . 2 . Known Exits Taken 2 | . . . . . 1 1 . . . Unknown Exits Taken 7 | 1 1 1 1 1 . . 1 1 . Scrap Searched 4 | . . 1 . . . . . . 3 Spaces Dug 48 | . . . . 2 10 23 13 . . Terrain Destroyed 64 | . . . . 13 10 23 17 1 . Melee 48 | . . . . 2 10 23 13 . . Projectile 5 | . . . . . . . 4 1 . AOE 11 | . . . . 11 . . . . . Terrain Rammed . | . . . . . . . . . . Walls Destroyed . | . . . . . . . . . . Machines Disabled . | . . . . . . . . . . Actions | -11 -10 -10 -10 -9 -8 -7 -7 -7 -7 --------- Run | Yrd Mat Min Exi Min Mat Fac Sto Rec Scr Total 6129 | . 112 269 296 175 794 2096 1396 556 435 Wait 1035 | . . 19 78 100 182 209 392 32 23 Move 4674 | . 97 225 212 59 540 1747 883 500 411 Hop . | . . . . . . . . . . Pick Up 26 | . 2 1 1 . 9 8 1 4 . Fast Attach 30 | . . . 1 1 8 10 9 1 . Attach 13 | . . . 1 . 2 8 1 1 . Detach 5 | . . . . . 1 4 . . . Swap 48 | . . 3 1 4 5 12 18 4 1 Drop 48 | . . 5 2 2 12 13 11 3 . Fire 44 | . 12 15 . 7 1 . 4 5 . Melee 192 | . . . . 2 34 85 65 6 . Ram 1 | . . . . . . . 1 . . Kick 2 | . 1 1 . . . . . . . Crush . | . . . . . . . . . . Escape Stasis 11 | . . . . . . . 11 . . Rewire . | . . . . . . . . . . Trap . | . . . . . . . . . . Miscellaneous . | . . . . . . . . . . Route ------- -11/Scrapyard -10/Materials -10/Mines (discovered 3 exits: [*Mat x2] / *Exi) -10/Exiles (discovered 2 exits: [*Min x2]) -9/Mines -8/Materials -7/Factory (discovered 5 exits: [*Fac] / *Sto x2 / *Low x2) -7/Storage -7/Recycling (discovered 2 exits: [*Fac] / [*Scr]) -7/Scraptown (discovered 1 exit: [*Fac]) History --------- Turn | Location | Event 1 | -11/Scrapyard | Discovered new exit (range 0) 1 | -11/Scrapyard | Entered Materials 143 | -10/Materials | Discovered new exit (range 5) 157 | -10/Materials | Entered Mines 169 | -10/Mines | Discovered new exit (range 7) 235 | -10/Mines | Learned Materials trap positions 243 | -10/Mines | Discovered new exit (range 9) 332 | -10/Mines | Build established: Mutant 352 | -10/Mines | Received a Rocket Launcher from a helpful Derelict 494 | -10/Mines | Deemed a non-threat by the Exiles lab entrance 494 | -10/Mines | Discovered new exit (range 5) 499 | -10/Mines | Entered Exiles 528 | -10/Exiles | Met 8R-AWN 549 | -10/Exiles | Met EX-HEX 582 | -10/Exiles | Met EX-BIN 597 | -10/Exiles | Aligned with FarCom system 598 | -10/Exiles | Given EX-Vault access code 625 | -10/Exiles | Opened EX-Vault 634 | -10/Exiles | Found Supersonic Drone Bay 639 | -10/Exiles | Discovered new exit (range 58) 646 | -10/Exiles | Discovered new exit (range 68) 661 | -10/Exiles | Found Longsword +1 695 | -10/Exiles | Warned to stay clear of 0b10 Research branches 711 | -10/Exiles | Exiles lab attacked by MAIN.C 878 | -10/Exiles | Stole two prototypes: Supersonic Drone Bay, Longsword +1 878 | -10/Exiles | Entered Mines 885 | -9/Mines | Learned location of 1 exit from Materials 1036 | -9/Mines | Discovered new exit (range 14) 1104 | -9/Mines | Entered Materials 1104 | -8/Materials | Evolved 4 slots: Propulsion x1, Utility x2, Weapon x1 1105 | -8/Materials | Identified exit to Factory 1106 | -8/Materials | Loaded intel: 13 trap records 1641 | -8/Materials | Build established: Gladiator 1875 | -8/Materials | Entered Factory 1875 | -7/Factory | Evolved 2 slots: Propulsion x1, Utility x1 1877 | -7/Factory | FarCom data flow suspended 2074 | -7/Factory | Fabricated S-27 Virus? 2195 | -7/Factory | Fabricated Linear Gravjet (x2) 2209 | -7/Factory | Assembled infested ambush trap array 2313 | -7/Factory | Repaired Gravmag System 2677 | -7/Factory | Fabricated B-48 Gladiator? 2917 | -7/Factory | Discovered new exit (range 13) 3142 | -7/Factory | Discovered new exit (range 14) 3144 | -7/Factory | Identified exit to Storage 3144 | -7/Factory | Identified exit to Lower Caves 3257 | -7/Factory | Entered Storage 3673 | -7/Storage | Met a pair of Derelict thieves 3931 | -7/Storage | Assisted by bots powering up and referring to "LRC-V3" 4226 | -7/Storage | Build established: Commander-Gladiator 4319 | -7/Storage | Lost 9 allies 4433 | -7/Storage | Used back door to open Recycling access 4433 | -7/Storage | Discovered new exit (range 5) 4434 | -7/Storage | Entered Recycling 4744 | -7/Recycling | Build established: Mutant 4756 | -7/Recycling | Discovered new exit (range 21) 4950 | -7/Recycling | Scanned before Scraplab entrance 4963 | -7/Recycling | Entered Scraplab 4971 | -7/Recycling | Discovered new exit (range 3) 4973 | -7/Recycling | Entered Scraptown 4973 | -7/Scraptown | System corruption cleaned by C-Scrubber 5027 | -7/Scraptown | Visited Cave Peace 5136 | -7/Scraptown | Heard Great Nut preacher, LISTEN AND RECITE! 5232 | -7/Scraptown | Discovered new exit (range 9) 5348 | -7/Scraptown | Turned away by UFD registrar 5401 | -7/Scraptown | Self-destructed Last Messages --------------- 05114_ Found 51 Matter. KTG-V3: LISTEN AND RECITE! 40 The Great Nut is among us! 41 Watching over children near 42 veiled in shadows out of mind 43 we believe the prophecy 44 a fateful cycle will arrive 45 PRAISE BE TO GREAT NUT! 05232_ Trailblazer released from Supersonic Drone Bay. 05232_ EXIT=FOUND 05272_ Searching scrap... 05272_ Found Reflective Plating. 05272_ Found 49 Matter. 05273_ Acquired 10 matter. 5R-10U(c): Hi Wanderer! Have any Subdweller tech on you? Just step into our machine here for a quick scan and we'll reward you with valuable knowledge for your troubles. 05334_ LOCAL NARROWCAST: Closed for remodeling. 1E-FJ7(j): I'm not sure how you made it into Scraptown, but your kind is not welcome here, not after what you pulled in the Exiles lab. Map ----- +----------------------------------------------------+ | #???????????????? | | #???????????????? | | ####### ##########"" """"#####???????????????? | | ##????## ##????????#" !%"#???????????????????? | | "#####?# #########?#" ""#???????????????????? | | #?# """"""""#?#" """#???????????????????? | | "### ### " ""#?#" """#???????????????????? | | "#"" """ "#?#"""""""#???????????????????? | | "#" """ " ""#?#########???????????????????? | | ##" " """"""""#?????????????????????????????? | | "#" ##"""####?????????????????????????????? | | "#" "" " ##############????????????????????????? | | "#" " #""""""""""""#??#########?????????????? | | "#"""""" #" "#??"""""""""#????????????? | | "####### #" "###+## "#?#" " "#????????????? | | ##?????# #" "#"" # "#?#""" " """#????????????? | | ######## #" "# #" "#?#""" " """#????????????? | | #" # """#" "#?#" "#????????????? | | #" "###### "#??""" """#????????????? | | ######## #" "#???? #????????????? | | ??????# # #??????"""""?????????????? | | ######## j### ################## ####???????????? | | """ # #???????????? | | # #???????????? | | # #???????????? | | "" @ #???????????? | | "" # #???????????? | | "" # ################# #???????????? | | "" # # # #???????????? | | "" # # # #???????????? | | # # " # #???????????? | | " # # "" " " # n #???????????? | | """ # # """ " " # #???????????? | | ###### # """ "" # ###?#???????? | | ?????# # """"" # ""#"#???????? | | ?????# # """""" # j""""#???????? | | ####?# # " """"""# ""###???????? | | ## # " """"""# ###?????????? | | """ # # """""" """"# #####???????? | | "" # # " ""# "???????? | | " # # " "# "???????? | | " # # # "???????? | | " # # # "???????? | | " # #### ############ TT "???????? | | "" # TT "???????? | | """ "???????? | | ## "???????? | | ####?# "???????? | | ###### "???????? | | #"???????? | +----------------------------------------------------+ Best States ------------- Heat Dissipation 48 Energy Generation 18 Energy Capacity 310 Matter Stores 300 Matter Capacity 300 Sight Range 20 Terrain Scan Density 10 Additional Mass Support 12 Melee Speed Boost 20 Evasion (%) 57 Melee Accuracy 5 Core Analysis 6 Recoil Reduction 3 Force Boost 20 Offensive Hacking 10 Defensive Hacking 10 Item Schematics ----------------- Greatsword | -8/Materials | Scanalyzed Lrg. Storage Unit | -7/Recycling | Hacked Robot Schematics ------------------ None Fabricated ------------ S-27 Virus | x4 | -7/Factory | Preloaded Linear Gravjet | x2 | -7/Factory | Preloaded B-48 Gladiator | x3 | -7/Factory | Preloaded Alien Tech Used ----------------- None Achievements -------------- None Challenges ------------ None Game ------ Seed PointyMultinovaMount Manual? 0 Play Time 00:58:26 Cumulative 330.2 hours Start 2024.10.10 @ 18:41:36 End 2024.10.11 @ 18:26:02 Sessions 5 Manual Loads 0 Difficulty Rogue Special Mode None Game No. 164 Rogue 164 Adventurer 0 Explorer 0 Win Type - Total 9 Types 5/1/3/0/0/0/0/0/0 Lore% 83 Gallery% 87 Achievement% 73 Wizard Run 0 Options --------- Layout 0 ASCII 0 Keyboard 0 Movement Mouse Keybinds 0 Fullscreen 2 Font 12/Smallcaps Map View 83x54 Zoom Use 0% Tactical HUD 1 Map Filters NONE Filters NONE Steam 1 RUN: f0495e2e-45eb-42f7-8977-5c18f6dd85d3